[Event "Late-Titled-Tuesday-Blitz-September-19-2023"]
[Site "Chess.com"]
[Date "2023.09.19"]
[Round "4"]
[White "Alexei_Gubajdullin"]
[Black "ATM622"]
[Result "1-0"]
[WhiteElo "2643"]
[BlackElo "2455"]
[TimeControl "180+1"]
[EndTime "14:36:14 PDT"]
[Termination "Alexei_Gubajdullin won on time"]

1. d4 {[%clk 0:03:00]} 1... Nf6 {[%clk 0:02:59.9]} 2. Nf3 {[%clk 0:02:59.8]}
2... e6 {[%clk 0:03:00.3]} 3. Bf4 {[%clk 0:03:00.3]} 3... d5 {[%clk 0:03:00.6]}
4. e3 {[%clk 0:03:00.5]} 4... c5 {[%clk 0:03:00.8]} 5. Nbd2 {[%clk 0:03:00.4]}
5... Nc6 {[%clk 0:03:01.4]} 6. c3 {[%clk 0:03:00.8]} 6... Bd6 {[%clk 0:03:01.9]}
7. Bg3 {[%clk 0:03:01.1]} 7... Ne4 {[%clk 0:03:01.3]} 8. Nxe4 {[%clk 0:03:00]}
8... dxe4 {[%clk 0:03:02.2]} 9. Nd2 {[%clk 0:03:00.2]} 9... f5 {[%clk
0:03:01.6]} 10. Bxd6 {[%clk 0:02:56.3]} 10... Qxd6 {[%clk 0:03:01.2]} 11. Nc4
{[%clk 0:02:56.3]} 11... Qe7 {[%clk 0:03:00.7]} 12. Qh5+ {[%clk 0:02:41.2]}
12... g6 {[%clk 0:02:58.8]} 13. Qh6 {[%clk 0:02:41.1]} 13... cxd4 {[%clk
0:02:56.3]} 14. exd4 {[%clk 0:02:40.4]} 14... Qf8 {[%clk 0:02:56.4]} 15. Qf4
{[%clk 0:02:38]} 15... Kf7 {[%clk 0:02:51.7]} 16. h4 {[%clk 0:02:35.7]} 16... h5
{[%clk 0:02:49.9]} 17. O-O-O {[%clk 0:02:32.1]} 17... Qh6 {[%clk 0:02:48]} 18.
Qxh6 {[%clk 0:02:29.2]} 18... Rxh6 {[%clk 0:02:48.9]} 19. Ne5+ {[%clk
0:02:25.9]} 19... Nxe5 {[%clk 0:02:47.2]} 20. dxe5 {[%clk 0:02:25.8]} 20... Ke7
{[%clk 0:02:47.7]} 21. Rd6 {[%clk 0:02:24.1]} 21... Bd7 {[%clk 0:02:43.3]} 22.
Bc4 {[%clk 0:02:23.8]} 22... Rhh8 {[%clk 0:02:32.3]} 23. Rhd1 {[%clk 0:02:22.9]}
23... Rad8 {[%clk 0:02:32.9]} 24. g3 {[%clk 0:02:20]} 24... b5 {[%clk
0:02:16.2]} 25. Bb3 {[%clk 0:02:19.5]} 25... a5 {[%clk 0:02:16.3]} 26. a3 {[%clk
0:02:19]} 26... a4 {[%clk 0:02:08]} 27. Ba2 {[%clk 0:02:18.8]} 27... Rhg8 {[%clk
0:01:30.4]} 28. R1d4 {[%clk 0:02:15.4]} 28... Rh8 {[%clk 0:01:26.5]} 29. Kd2
{[%clk 0:02:14.9]} 29... g5 {[%clk 0:01:08.2]} 30. hxg5 {[%clk 0:02:12.8]} 30...
f4 {[%clk 0:01:03.2]} 31. Rxe4 {[%clk 0:01:57.5]} 31... fxg3 {[%clk 0:01:01.9]}
32. fxg3 {[%clk 0:01:57.3]} 32... Rhg8 {[%clk 0:01:02]} 33. Red4 {[%clk
0:01:57.1]} 33... Rxg5 {[%clk 0:00:52.2]} 34. Bxe6 {[%clk 0:01:56.1]} 34... Bxe6
{[%clk 0:00:53.1]} 35. Rxd8 {[%clk 0:01:55.9]} 35... Rxg3 {[%clk 0:00:50]} 36.
Rh8 {[%clk 0:01:49.9]} 36... Rg2+ {[%clk 0:00:49.8]} 37. Ke3 {[%clk 0:01:49.9]}
37... Bg4 {[%clk 0:00:45.1]} 38. Rd6 {[%clk 0:01:47.2]} 38... Rxb2 {[%clk
0:00:43]} 39. Rh7+ {[%clk 0:01:46.8]} 39... Ke8 {[%clk 0:00:43.3]} 40. Rb6
{[%clk 0:01:46]} 40... Re2+ {[%clk 0:00:31.5]} 41. Kd4 {[%clk 0:01:43.2]} 41...
Rd2+ {[%clk 0:00:31.5]} 42. Kc5 {[%clk 0:01:43.2]} 1-0

[Event "Late-Titled-Tuesday-Blitz-September-19-2023"]
[Site "Chess.com"]
[Date "2023.09.19"]
[Round "4"]
[White "Journey_to_GrandMaster_YT"]
[Black "DTChess"]
[Result "0-1"]
[WhiteElo "2665"]
[BlackElo "2527"]
[TimeControl "180+1"]
[EndTime "14:36:16 PDT"]
[Termination "DTChess won by checkmate"]

1. d4 {[%clk 0:03:00.3]} 1... Nf6 {[%clk 0:02:59.8]} 2. Nf3 {[%clk 0:03:00.5]}
2... e6 {[%clk 0:02:59.8]} 3. c4 {[%clk 0:03:00.2]} 3... d5 {[%clk 0:02:59.7]}
4. Nc3 {[%clk 0:03:00.1]} 4... Be7 {[%clk 0:02:59.8]} 5. Bg5 {[%clk 0:02:57.2]}
5... O-O {[%clk 0:02:59.7]} 6. e3 {[%clk 0:02:57.4]} 6... c6 {[%clk 0:02:59.9]}
7. Qc2 {[%clk 0:02:53.8]} 7... Nbd7 {[%clk 0:02:59.7]} 8. Rd1 {[%clk 0:02:52.9]}
8... a6 {[%clk 0:02:59.6]} 9. cxd5 {[%clk 0:02:52.7]} 9... exd5 {[%clk
0:02:59.5]} 10. Bd3 {[%clk 0:02:53]} 10... Re8 {[%clk 0:02:59.6]} 11. O-O {[%clk
0:02:53.1]} 11... Nf8 {[%clk 0:03:00]} 12. h3 {[%clk 0:02:42.4]} 12... g6 {[%clk
0:02:57]} 13. Ne5 {[%clk 0:02:40]} 13... Ne6 {[%clk 0:02:56.4]} 14. Bh4 {[%clk
0:02:36.7]} 14... Ng7 {[%clk 0:02:56.2]} 15. f4 {[%clk 0:02:34.7]} 15... Nf5
{[%clk 0:02:49.9]} 16. Bf2 {[%clk 0:02:33.4]} 16... Nd6 {[%clk 0:02:49.8]} 17.
Kh2 {[%clk 0:02:22.6]} 17... Bf5 {[%clk 0:02:43.8]} 18. Bxf5 {[%clk 0:02:20.6]}
18... Nxf5 {[%clk 0:02:40]} 19. Qb3 {[%clk 0:02:12.3]} 19... Nd6 {[%clk
0:02:34.6]} 20. g4 {[%clk 0:02:10.3]} 20... Rb8 {[%clk 0:02:18.6]} 21. Bh4
{[%clk 0:02:05.8]} 21... Nfe4 {[%clk 0:02:14.8]} 22. Bxe7 {[%clk 0:02:04.5]}
22... Qxe7 {[%clk 0:02:13]} 23. Ne2 {[%clk 0:01:54.7]} 23... f6 {[%clk
0:02:05.1]} 24. Nd3 {[%clk 0:01:53.9]} 24... Nc4 {[%clk 0:01:59.9]} 25. Rf3
{[%clk 0:01:47.5]} 25... Ncd2 {[%clk 0:01:54.2]} 26. Qc2 {[%clk 0:00:59.6]}
26... Nxf3+ {[%clk 0:01:45.2]} 27. Kg2 {[%clk 0:01:00.3]} 27... Nh4+ {[%clk
0:01:40.1]} 28. Kh2 {[%clk 0:01:00.3]} 28... Nd6 {[%clk 0:01:31.8]} 29. Ng3
{[%clk 0:00:55.8]} 29... Qxe3 {[%clk 0:01:29]} 30. f5 {[%clk 0:00:46]} 30... Ne4
{[%clk 0:01:20.8]} 31. Nf1 {[%clk 0:00:37.3]} 31... Nf3+ {[%clk 0:01:03.1]} 32.
Kg2 {[%clk 0:00:28.2]} 32... Qg1+ {[%clk 0:01:00.4]} 33. Kxf3 {[%clk 0:00:25.3]}
33... Ng5+ {[%clk 0:01:00.6]} 34. Kf4 {[%clk 0:00:23.9]} 34... Re4# {[%clk
0:01:00.3]} 0-1

[Event "Late-Titled-Tuesday-Blitz-September-19-2023"]
[Site "Chess.com"]
[Date "2023.09.19"]
[Round "4"]
[White "Fy_Rakotomaharo"]
[Black "zverr1"]
[Result "0-1"]
[WhiteElo "2705"]
[BlackElo "2515"]
[TimeControl "180+1"]
[EndTime "14:36:17 PDT"]
[Termination "zverr1 won by resignation"]

1. d4 {[%clk 0:02:54.5]} 1... Nf6 {[%clk 0:03:00.5]} 2. Nf3 {[%clk 0:02:55.4]}
2... g6 {[%clk 0:03:01]} 3. Bg5 {[%clk 0:02:56]} 3... Bg7 {[%clk 0:03:00.9]} 4.
Nbd2 {[%clk 0:02:56.8]} 4... O-O {[%clk 0:02:53.6]} 5. e4 {[%clk 0:02:56.4]}
5... d5 {[%clk 0:02:54.1]} 6. exd5 {[%clk 0:02:56.2]} 6... Nxd5 {[%clk
0:02:52.2]} 7. c3 {[%clk 0:02:55.7]} 7... h6 {[%clk 0:02:48.7]} 8. Bh4 {[%clk
0:02:55.2]} 8... Bf5 {[%clk 0:02:32.9]} 9. Bc4 {[%clk 0:02:54.8]} 9... Nb6
{[%clk 0:02:28.5]} 10. Bb3 {[%clk 0:02:53.4]} 10... Bd3 {[%clk 0:02:24.9]} 11.
a4 {[%clk 0:02:48.1]} 11... a5 {[%clk 0:02:21.4]} 12. Bc2 {[%clk 0:02:45.4]}
12... Ba6 {[%clk 0:02:10.4]} 13. Ne4 {[%clk 0:02:44.5]} 13... N8d7 {[%clk
0:02:09.3]} 14. Bd3 {[%clk 0:02:44.9]} 14... Bxd3 {[%clk 0:02:07.1]} 15. Qxd3
{[%clk 0:02:45.8]} 15... f5 {[%clk 0:01:51.3]} 16. Ned2 {[%clk 0:02:34]} 16...
g5 {[%clk 0:01:50.1]} 17. Bxg5 {[%clk 0:02:34.4]} 17... hxg5 {[%clk 0:01:48.9]}
18. Nxg5 {[%clk 0:02:35.3]} 18... e5 {[%clk 0:01:33.9]} 19. Ne6 {[%clk
0:02:31.5]} 19... Qe7 {[%clk 0:01:34.3]} 20. Nxf8 {[%clk 0:02:32]} 20... exd4+
{[%clk 0:01:34.6]} 21. Kf1 {[%clk 0:02:31]} 21... Rxf8 {[%clk 0:01:29.5]} 22.
cxd4 {[%clk 0:02:28.7]} 22... Qb4 {[%clk 0:01:24.8]} 23. Qb3+ {[%clk 0:02:12.9]}
23... Qxb3 {[%clk 0:01:15.2]} 24. Nxb3 {[%clk 0:02:13.8]} 24... Nc4 {[%clk
0:01:14.5]} 25. Rc1 {[%clk 0:02:13.3]} 25... Ndb6 {[%clk 0:01:05.8]} 26. Nc5
{[%clk 0:02:12.4]} 26... Bxd4 {[%clk 0:00:58.2]} 27. Ne6 {[%clk 0:02:12.3]}
27... Bxb2 {[%clk 0:00:58.1]} 28. Rxc4 {[%clk 0:02:01.6]} 28... Nxc4 {[%clk
0:00:57.3]} 29. Nxf8 {[%clk 0:02:02.5]} 29... Kxf8 {[%clk 0:00:57.8]} 30. Ke2
{[%clk 0:02:03.4]} 30... Nb6 {[%clk 0:00:50]} 31. Rd1 {[%clk 0:01:58.3]} 31...
Ke7 {[%clk 0:00:47.6]} 32. h4 {[%clk 0:01:53.6]} 32... Nxa4 {[%clk 0:00:45]} 33.
Kd3 {[%clk 0:01:51.5]} 33... Bf6 {[%clk 0:00:41.2]} 34. Rh1 {[%clk 0:01:51.4]}
34... b5 {[%clk 0:00:34.2]} 35. h5 {[%clk 0:01:50.2]} 35... c5 {[%clk
0:00:34.7]} 36. h6 {[%clk 0:01:50.6]} 36... c4+ {[%clk 0:00:35.3]} 37. Ke3
{[%clk 0:01:49.9]} 37... b4 {[%clk 0:00:29.5]} 38. h7 {[%clk 0:01:50.8]} 38...
Bh8 {[%clk 0:00:26.4]} 39. Rh6 {[%clk 0:01:48.7]} 39... b3 {[%clk 0:00:25.4]}
40. Kd2 {[%clk 0:01:43.1]} 40... c3+ {[%clk 0:00:24.8]} 41. Kd3 {[%clk
0:01:43.8]} 41... c2 {[%clk 0:00:20.1]} 42. Rc6 {[%clk 0:01:43.9]} 42... Nc3
{[%clk 0:00:15.4]} 43. Kd2 {[%clk 0:01:42]} 43... Na2 {[%clk 0:00:15.1]} 0-1

[Event "Late-Titled-Tuesday-Blitz-September-19-2023"]
[Site "Chess.com"]
[Date "2023.09.19"]
[Round "4"]
[White "MelihKaanCan"]
[Black "Mikasinski"]
[Result "0-1"]
[WhiteElo "2399"]
[BlackElo "2615"]
[TimeControl "180+1"]
[EndTime "14:36:29 PDT"]
[Termination "Mikasinski won on time"]

1. e4 {[%clk 0:03:00.9]} 1... c5 {[%clk 0:02:59.2]} 2. Nc3 {[%clk 0:02:59.5]}
2... Nc6 {[%clk 0:02:59.3]} 3. Bb5 {[%clk 0:02:59.6]} 3... Nd4 {[%clk
0:02:58.9]} 4. Nf3 {[%clk 0:02:59.3]} 4... a6 {[%clk 0:02:59]} 5. Bd3 {[%clk
0:02:58.8]} 5... Nc6 {[%clk 0:02:58.5]} 6. O-O {[%clk 0:02:58.6]} 6... g6 {[%clk
0:02:54.6]} 7. Rb1 {[%clk 0:02:56.8]} 7... Bg7 {[%clk 0:02:54.8]} 8. Re1 {[%clk
0:02:52.5]} 8... d6 {[%clk 0:02:54.6]} 9. h3 {[%clk 0:02:49.6]} 9... Nf6 {[%clk
0:02:53.9]} 10. Nd5 {[%clk 0:02:49.1]} 10... O-O {[%clk 0:02:52.9]} 11. c3
{[%clk 0:02:41.5]} 11... Be6 {[%clk 0:02:44.5]} 12. Nf4 {[%clk 0:02:34.6]} 12...
Bxa2 {[%clk 0:02:40.7]} 13. Ra1 {[%clk 0:02:34.3]} 13... Be6 {[%clk 0:02:32.5]}
14. Nxe6 {[%clk 0:02:34.3]} 14... fxe6 {[%clk 0:02:32.7]} 15. Bc4 {[%clk
0:02:23.2]} 15... d5 {[%clk 0:02:31.8]} 16. Ba2 {[%clk 0:02:17.9]} 16... Nxe4
{[%clk 0:02:30.1]} 17. Rxe4 {[%clk 0:02:14.3]} 17... dxe4 {[%clk 0:02:28.9]} 18.
Bxe6+ {[%clk 0:02:15.2]} 18... Kh8 {[%clk 0:02:28.8]} 19. Ng5 {[%clk 0:02:16.1]}
19... Ne5 {[%clk 0:02:25.5]} 20. Ra4 {[%clk 0:02:06.2]} 20... Qd6 {[%clk
0:02:15.9]} 21. Rxe4 {[%clk 0:01:41.1]} 21... h6 {[%clk 0:02:01.4]} 22. d4
{[%clk 0:01:41.4]} 22... hxg5 {[%clk 0:01:59]} 23. d5 {[%clk 0:01:41.7]} 23...
Nf7 {[%clk 0:01:49.2]} 24. Qg4 {[%clk 0:01:29.4]} 24... Bh6 {[%clk 0:01:46.5]}
25. h4 {[%clk 0:01:27.6]} 25... Ne5 {[%clk 0:01:37.9]} 26. Qe2 {[%clk
0:01:08.1]} 26... Nf7 {[%clk 0:01:25.1]} 27. hxg5 {[%clk 0:00:58.1]} 27... Nxg5
{[%clk 0:01:23.9]} 28. Rh4 {[%clk 0:00:57.8]} 28... Kg7 {[%clk 0:01:21]} 29. Qg4
{[%clk 0:00:43.3]} 29... Nf3+ {[%clk 0:01:15.7]} 30. gxf3 {[%clk 0:00:36.1]}
30... Bxc1 {[%clk 0:01:15.7]} 31. Qh3 {[%clk 0:00:07.2]} 31... Rh8 {[%clk
0:01:14.1]} 32. Kg2 {[%clk 0:00:04.2]} 32... Rxh4 {[%clk 0:01:13.4]} 33. Qxh4
{[%clk 0:00:02.8]} 33... Rh8 {[%clk 0:01:14.3]} 34. Qg5 {[%clk 0:00:01.5]} 34...
Bxg5 {[%clk 0:01:13.7]} 0-1

[Event "Late-Titled-Tuesday-Blitz-September-19-2023"]
[Site "Chess.com"]
[Date "2023.09.19"]
[Round "4"]
[White "scandalgod"]
[Black "Dewarfd"]
[Result "1-0"]
[WhiteElo "2457"]
[BlackElo "2206"]
[TimeControl "180+1"]
[EndTime "14:36:34 PDT"]
[Termination "scandalgod won by resignation"]

1. d4 {[%clk 0:02:57]} 1... d5 {[%clk 0:02:59.1]} 2. c4 {[%clk 0:02:57]} 2... e6
{[%clk 0:02:59]} 3. Nf3 {[%clk 0:02:56.1]} 3... c5 {[%clk 0:02:58.7]} 4. cxd5
{[%clk 0:02:54.1]} 4... exd5 {[%clk 0:02:58.5]} 5. g3 {[%clk 0:02:54.2]} 5...
Nc6 {[%clk 0:02:58.4]} 6. Bg2 {[%clk 0:02:54.1]} 6... Nf6 {[%clk 0:02:58.3]} 7.
O-O {[%clk 0:02:54.3]} 7... c4 {[%clk 0:02:55.3]} 8. Nc3 {[%clk 0:02:53.4]} 8...
Bd6 {[%clk 0:02:50.5]} 9. Bg5 {[%clk 0:02:52.5]} 9... Be6 {[%clk 0:02:50.5]} 10.
e4 {[%clk 0:02:49.1]} 10... dxe4 {[%clk 0:02:46.2]} 11. Nd2 {[%clk 0:02:31.8]}
11... Be7 {[%clk 0:02:42.2]} 12. Ndxe4 {[%clk 0:02:18.4]} 12... Nxd4 {[%clk
0:01:50.7]} 13. Nxf6+ {[%clk 0:01:57.8]} 13... Bxf6 {[%clk 0:01:50.7]} 14. Bxb7
{[%clk 0:01:49.2]} 14... Rb8 {[%clk 0:01:01.2]} 15. Bxf6 {[%clk 0:01:22.3]}
15... Qxf6 {[%clk 0:01:00.9]} 16. Qa4+ {[%clk 0:01:18.4]} 16... Bd7 {[%clk
0:00:58.4]} 17. Rfe1+ {[%clk 0:01:15]} 17... Ne6 {[%clk 0:00:58.4]} 18. Bc6
{[%clk 0:01:05.7]} 18... Qe7 {[%clk 0:00:25.9]} 19. Rad1 {[%clk 0:00:55.5]}
19... Rd8 {[%clk 0:00:25.6]} 20. Nd5 {[%clk 0:00:52.9]} 20... Bxc6 {[%clk
0:00:16.1]} 21. Qxc6+ {[%clk 0:00:51.3]} 21... Qd7 {[%clk 0:00:16.4]} 22. Nc7+
{[%clk 0:00:50.8]} 22... Ke7 {[%clk 0:00:13.9]} 23. Rxd7+ {[%clk 0:00:50.6]}
23... Rxd7 {[%clk 0:00:14.8]} 24. Nxe6 {[%clk 0:00:50.8]} 24... fxe6 {[%clk
0:00:08.5]} 25. Rxe6+ {[%clk 0:00:50]} 25... Kd8 {[%clk 0:00:07.2]} 26. Qa8+
{[%clk 0:00:49.5]} 26... Kc7 {[%clk 0:00:08]} 27. Qxh8 {[%clk 0:00:50]} 1-0

[Event "Late-Titled-Tuesday-Blitz-September-19-2023"]
[Site "Chess.com"]
[Date "2023.09.19"]
[Round "4"]
[White "picturesquecheck"]
[Black "Road2GM3000"]
[Result "1-0"]
[WhiteElo "2365"]
[BlackElo "2489"]
[TimeControl "180+1"]
[EndTime "14:36:35 PDT"]
[Termination "picturesquecheck won by resignation"]

1. e4 {[%clk 0:03:00.9]} 1... c5 {[%clk 0:03:00.4]} 2. c3 {[%clk 0:02:56.8]}
2... d5 {[%clk 0:03:00.6]} 3. exd5 {[%clk 0:02:56.8]} 3... Qxd5 {[%clk
0:03:01.5]} 4. d4 {[%clk 0:02:56.7]} 4... Nf6 {[%clk 0:03:02]} 5. Nf3 {[%clk
0:02:56.2]} 5... Bg4 {[%clk 0:03:02.7]} 6. Be2 {[%clk 0:02:56.3]} 6... e6 {[%clk
0:03:03.1]} 7. O-O {[%clk 0:02:55.3]} 7... Nc6 {[%clk 0:03:03.8]} 8. Na3 {[%clk
0:02:54.3]} 8... Be7 {[%clk 0:03:03.1]} 9. Nb5 {[%clk 0:02:54]} 9... Rc8 {[%clk
0:02:54.5]} 10. h3 {[%clk 0:02:49.4]} 10... Bh5 {[%clk 0:02:53]} 11. Bf4 {[%clk
0:02:48.7]} 11... O-O {[%clk 0:02:52.3]} 12. Qb3 {[%clk 0:01:33.1]} 12... Qxb3
{[%clk 0:02:46.1]} 13. axb3 {[%clk 0:01:34]} 13... a6 {[%clk 0:02:45.6]} 14. Nd6
{[%clk 0:01:33.8]} 14... Ra8 {[%clk 0:02:11.2]} 15. dxc5 {[%clk 0:01:31.5]}
15... Nd5 {[%clk 0:02:06.1]} 16. Bh2 {[%clk 0:01:30.4]} 16... Ra7 {[%clk
0:02:01.8]} 17. b4 {[%clk 0:01:30]} 17... f6 {[%clk 0:01:55.8]} 18. Rfe1 {[%clk
0:01:28.9]} 18... e5 {[%clk 0:01:51.1]} 19. Bc4 {[%clk 0:01:28.2]} 19... Bxf3
{[%clk 0:01:28.9]} 20. gxf3 {[%clk 0:01:26]} 20... Rd8 {[%clk 0:01:29.5]} 21.
Bxd5+ {[%clk 0:01:25.9]} 21... Kf8 {[%clk 0:01:30.2]} 22. Bxc6 {[%clk
0:01:24.8]} 22... bxc6 {[%clk 0:01:30.4]} 23. f4 {[%clk 0:01:24]} 23... Bxd6
{[%clk 0:01:26.7]} 24. cxd6 {[%clk 0:01:24.2]} 24... Rxd6 {[%clk 0:01:27.6]} 25.
fxe5 {[%clk 0:01:24.8]} 25... Rd2 {[%clk 0:01:27.9]} 26. exf6 {[%clk 0:01:22.5]}
26... Rxb2 {[%clk 0:01:23.3]} 27. Bd6+ {[%clk 0:01:18.5]} 27... Kf7 {[%clk
0:01:20]} 28. fxg7 {[%clk 0:01:11.1]} 28... Kxg7 {[%clk 0:01:13.6]} 29. Be5+
{[%clk 0:01:11.3]} 29... Kf7 {[%clk 0:01:13.1]} 30. Bd4 {[%clk 0:01:12]} 30...
Ra8 {[%clk 0:01:08]} 31. Re4 {[%clk 0:01:12]} 31... Rg8+ {[%clk 0:01:07.4]} 32.
Rg4 {[%clk 0:01:12.3]} 32... Ra8 {[%clk 0:01:02.8]} 33. Rg7+ {[%clk 0:01:12.1]}
33... Ke6 {[%clk 0:01:03.5]} 34. Rxh7 {[%clk 0:01:12.2]} 34... Kf5 {[%clk
0:01:03.9]} 35. Kg2 {[%clk 0:01:10.7]} 35... Ke4 {[%clk 0:01:03.6]} 36. Rh4+
{[%clk 0:01:10.1]} 36... Kd3 {[%clk 0:01:03.5]} 37. Rh6 {[%clk 0:01:10.1]} 37...
Rg8+ {[%clk 0:01:03.3]} 38. Kf3 {[%clk 0:01:07.3]} 38... Re8 {[%clk 0:01:03.8]}
39. Rxc6 {[%clk 0:01:04.6]} 39... Rf8+ {[%clk 0:01:03.7]} 40. Rf6 {[%clk
0:01:04.5]} 40... Rh8 {[%clk 0:01:04.5]} 41. Rh1 {[%clk 0:00:59.7]} 41... Kc4
{[%clk 0:01:03.2]} 42. Rxa6 {[%clk 0:00:59.1]} 42... Rg8 {[%clk 0:01:00.9]} 43.
Rc6+ {[%clk 0:00:56.9]} 43... Kd5 {[%clk 0:01:00.5]} 44. Rc5+ {[%clk 0:00:56.9]}
44... Kd6 {[%clk 0:01:01]} 45. h4 {[%clk 0:00:57.5]} 45... Ra2 {[%clk 0:01:00]}
46. h5 {[%clk 0:00:57.5]} 46... Raa8 {[%clk 0:01:00.6]} 47. h6 {[%clk
0:00:57.6]} 47... Rae8 {[%clk 0:01:01.1]} 48. Rf5 {[%clk 0:00:54.3]} 48... Ref8
{[%clk 0:00:54.9]} 49. Rxf8 {[%clk 0:00:53.6]} 49... Rxf8+ {[%clk 0:00:55.1]}
50. Ke2 {[%clk 0:00:54.3]} 50... Re8+ {[%clk 0:00:43.5]} 51. Kd3 {[%clk
0:00:54]} 1-0

[Event "Late-Titled-Tuesday-Blitz-September-19-2023"]
[Site "Chess.com"]
[Date "2023.09.19"]
[Round "4"]
[White "Firouzja2003"]
[Black "ukchessbomber"]
[Result "1-0"]
[WhiteElo "3066"]
[BlackElo "2692"]
[TimeControl "180+1"]
[EndTime "14:36:36 PDT"]
[Termination "Firouzja2003 won by checkmate"]

1. e4 {[%clk 0:03:00.2]} 1... b6 {[%clk 0:02:57.1]} 2. d4 {[%clk 0:02:58.5]}
2... Bb7 {[%clk 0:02:57.7]} 3. Bd3 {[%clk 0:02:57.8]} 3... e6 {[%clk 0:02:58]}
4. Nf3 {[%clk 0:02:53.7]} 4... Nf6 {[%clk 0:02:58.1]} 5. Qe2 {[%clk 0:02:50.1]}
5... d6 {[%clk 0:02:57.2]} 6. O-O {[%clk 0:02:48.2]} 6... Be7 {[%clk 0:02:57.5]}
7. Nc3 {[%clk 0:02:46.8]} 7... Nbd7 {[%clk 0:02:57.5]} 8. Rd1 {[%clk 0:02:45]}
8... O-O {[%clk 0:02:56.9]} 9. e5 {[%clk 0:02:41.2]} 9... Bxf3 {[%clk 0:02:26]}
10. gxf3 {[%clk 0:02:33.2]} 10... Nd5 {[%clk 0:01:42]} 11. Qe4 {[%clk
0:02:20.2]} 11... g6 {[%clk 0:01:18.3]} 12. Nxd5 {[%clk 0:02:06.1]} 12... exd5
{[%clk 0:01:19.2]} 13. Qxd5 {[%clk 0:02:07]} 13... dxe5 {[%clk 0:01:18.3]} 14.
dxe5 {[%clk 0:02:01.2]} 14... Nc5 {[%clk 0:01:18.9]} 15. Bb5 {[%clk 0:01:39.9]}
15... Qc8 {[%clk 0:01:06.9]} 16. Bh6 {[%clk 0:01:08.7]} 16... Rd8 {[%clk
0:01:05.2]} 17. Qc6 {[%clk 0:01:04.6]} 17... Qf5 {[%clk 0:00:23.1]} 18. Qxc7
{[%clk 0:00:37.2]} 18... Bg5 {[%clk 0:00:21.4]} 19. Rxd8+ {[%clk 0:00:31.8]}
19... Rxd8 {[%clk 0:00:22.3]} 20. Bc4 {[%clk 0:00:28.2]} 20... Ne6 {[%clk
0:00:03.4]} 21. Bxe6 {[%clk 0:00:27.6]} 21... fxe6 {[%clk 0:00:04.3]} 22. Qg7#
{[%clk 0:00:27.3]} 1-0

[Event "Late-Titled-Tuesday-Blitz-September-19-2023"]
[Site "Chess.com"]
[Date "2023.09.19"]
[Round "4"]
[White "IngOscarArdila"]
[Black "MalyDominator"]
[Result "0-1"]
[WhiteElo "2298"]
[BlackElo "2446"]
[TimeControl "180+1"]
[EndTime "14:36:37 PDT"]
[Termination "MalyDominator won on time"]

1. d4 {[%clk 0:01:47.9]} 1... d5 {[%clk 0:02:35.1]} 2. c4 {[%clk 0:01:46.9]}
2... e6 {[%clk 0:02:36]} 3. Nc3 {[%clk 0:01:46.3]} 3... dxc4 {[%clk 0:02:33.5]}
4. Qa4+ {[%clk 0:01:43.2]} 4... Bd7 {[%clk 0:02:31.7]} 5. Qxc4 {[%clk
0:01:43.1]} 5... Nf6 {[%clk 0:02:31.3]} 6. Nf3 {[%clk 0:01:41.8]} 6... Be7
{[%clk 0:02:31.4]} 7. e4 {[%clk 0:01:41.1]} 7... O-O {[%clk 0:02:32.1]} 8. Bd3
{[%clk 0:01:39.9]} 8... Na6 {[%clk 0:02:31.8]} 9. O-O {[%clk 0:01:37.3]} 9... c5
{[%clk 0:02:32.1]} 10. e5 {[%clk 0:01:34.2]} 10... Nd5 {[%clk 0:02:25.3]} 11.
Nxd5 {[%clk 0:01:31.6]} 11... exd5 {[%clk 0:02:25.6]} 12. Qc2 {[%clk 0:01:30.6]}
12... Nb4 {[%clk 0:02:21.6]} 13. Bxh7+ {[%clk 0:01:29.4]} 13... Kh8 {[%clk
0:02:21.4]} 14. Qb1 {[%clk 0:01:29.6]} 14... Bg4 {[%clk 0:02:10]} 15. Ne1 {[%clk
0:01:15.8]} 15... Be2 {[%clk 0:02:02.8]} 16. a3 {[%clk 0:01:15.3]} 16... Nc6
{[%clk 0:02:01.9]} 17. Bd3 {[%clk 0:01:15]} 17... Bxf1 {[%clk 0:02:01]} 18. Bxf1
{[%clk 0:01:12.2]} 18... Nxd4 {[%clk 0:02:00.9]} 19. Qd3 {[%clk 0:01:04.8]}
19... Bg5 {[%clk 0:01:55.5]} 20. Qh3+ {[%clk 0:01:03.8]} 20... Kg8 {[%clk
0:01:54.2]} 21. Bd3 {[%clk 0:01:03.7]} 21... g6 {[%clk 0:01:52.9]} 22. f4 {[%clk
0:00:58.7]} 22... Be7 {[%clk 0:01:50.1]} 23. Qg4 {[%clk 0:00:53.6]} 23... Qc8
{[%clk 0:01:46]} 24. Qg3 {[%clk 0:00:31.1]} 24... Nf5 {[%clk 0:01:37.6]} 25. Qf3
{[%clk 0:00:22.8]} 25... c4 {[%clk 0:01:36.3]} 26. Bb1 {[%clk 0:00:22.3]} 26...
Bc5+ {[%clk 0:01:34.2]} 27. Kh1 {[%clk 0:00:22]} 27... d4 {[%clk 0:01:25.1]} 28.
Be4 {[%clk 0:00:17.8]} 28... d3 {[%clk 0:01:24.9]} 29. g4 {[%clk 0:00:11]} 29...
Nd4 {[%clk 0:01:24.1]} 30. Qg2 {[%clk 0:00:07.4]} 30... Qd8 {[%clk 0:01:19.8]}
31. Bd2 {[%clk 0:00:05.4]} 31... Qh4 {[%clk 0:01:19.6]} 32. Bc3 {[%clk
0:00:04.7]} 32... Ne2 {[%clk 0:01:19.4]} 33. Nf3 {[%clk 0:00:04]} 33... Qf2
{[%clk 0:01:18.6]} 34. Qxf2 {[%clk 0:00:02.2]} 34... Bxf2 {[%clk 0:01:18.3]} 35.
Rf1 {[%clk 0:00:02.6]} 35... Nxc3 {[%clk 0:01:18.4]} 36. bxc3 {[%clk 0:00:00.9]}
36... Be3 {[%clk 0:01:18.9]} 0-1